fUSD/lending_fUSD_20250522
["ID","MTS","AMOUNT","RATE_DAILY","PERIOD"]
[362010607,1747935060306,-420.0,0.00033971,5]
[362010608,1747935060315,-420.0,0.00033971,5]
[362010609,1747935060324,-420.0,0.00033971,5]
[362010610,1747935060334,-420.0,0.00033971,5]
[362010611,1747935060344,-420.0,0.00033972,5]
[362010612,1747935060353,-420.0,0.00033972,5]
[362010613,1747935060363,-300.0,0.00033972,5]
[362010614,1747935060372,-597.49,0.00033972,5]
[362010615,1747935060381,-420.14,0.00033972,5]
[362010616,1747935060391,-420.0,0.00033972,5]
[362010617,1747935060400,-420.0,0.00033972,5]
[362010618,1747935060410,-420.0,0.00033972,5]
[362010619,1747935060419,-420.0,0.00033972,5]
[362010620,1747935060429,-420.0,0.00033972,5]
[362010621,1747935060438,-420.0,0.00033972,5]
[362010622,1747935060447,-420.0,0.00033972,5]
[362010623,1747935060456,-427.8,0.00033972,5]
[362010624,1747935060466,-420.0,0.00033972,5]
[362010625,1747935060475,-420.0,0.00033972,5]
[362010626,1747935060484,-327.29956897,0.00033972,5]
[362010627,1747935060493,-341.96214253,0.00033972,5]
[362010628,1747935060502,-421.55,0.00033972,5]
[362010629,1747935060512,-420.0,0.00033972,5]
[362010630,1747935060603,-420.0,0.00033972,5]
[362010631,1747935060613,-420.0,0.00033972,5]
[362010632,1747935060623,-420.0,0.00033972,5]
[362010633,1747935060631,-420.0,0.00033972,5]
[362010634,1747935060641,-420.0,0.00033972,5]
[362010635,1747935060651,-420.0,0.00033972,5]
[362010636,1747935060660,-420.0,0.00033972,5]
[362010637,1747935060670,-420.0,0.00033972,5]
[362010638,1747935060679,-420.0,0.00033972,5]
[362010639,1747935060688,-420.0,0.00033972,5]
[362010640,1747935060697,-420.0,0.00033972,5]
[362010641,1747935060707,-455.43,0.00033972,5]
[362010642,1747935060717,-420.0,0.00033972,5]
[362010643,1747935060726,-420.0,0.00033972,5]
[362010644,1747935060736,-603.05,0.00033972,5]
[362010645,1747935060745,-420.0,0.00033972,5]
[362010646,1747935060754,-420.0,0.00033972,5]
[362010647,1747935060764,-420.0,0.00033972,5]
[362010648,1747935060773,-420.0,0.00033972,5]
[362010649,1747935060783,-420.0,0.00033972,5]
[362010650,1747935060792,-420.0,0.00033972,5]
[362010651,1747935060801,-454.01,0.00033972,5]
[362010652,1747935060811,-420.0,0.00033972,5]
[362010653,1747935060820,-420.0,0.00033972,5]
[362010654,1747935060830,-420.0,0.00033972,5]
[362010655,1747935060840,-420.0,0.00033972,5]
[362010656,1747935060850,-420.0,0.00033972,5]
[362010657,1747935060859,-420.0,0.00033972,5]
[362010658,1747935060868,-420.0,0.00033972,5]
[362010659,1747935060878,-420.0,0.00033972,5]
[362010660,1747935060887,-457.94,0.00033972,5]
[362010661,1747935060896,-420.0,0.00033972,5]
[362010662,1747935060906,-956.72,0.00033972,5]
[362010663,1747935060915,-564.7,0.00033972,5]
[362010664,1747935060925,-483.05,0.00033972,5]
[362010665,1747935060934,-795.32,0.00033972,5]
[362010666,1747935060944,-420.0,0.00033972,5]
[362010667,1747935060953,-465.07,0.00033972,5]
[362010668,1747935060963,-456.27,0.00033972,5]
[362010669,1747935060972,-420.0,0.00033972,5]
[362010670,1747935060981,-420.0,0.00033972,5]
[362010671,1747935060991,-420.0,0.00033972,5]
[362010672,1747935061000,-420.0,0.00033972,5]
[362010673,1747935061009,-652.27,0.00033972,5]
[362010674,1747935061018,-420.0,0.00033972,5]
[362010675,1747935061028,-552.16,0.00033972,5]
[362010676,1747935061037,-420.0,0.00033972,5]
[362010677,1747935061047,-420.0,0.00033972,5]
[362010678,1747935061056,-616.4,0.00033972,5]
[362010679,1747935061066,-420.0,0.00033972,5]
[362010680,1747935061076,-420.0,0.00033972,5]
[362010681,1747935061085,-420.0,0.00033972,5]
[362010682,1747935061095,-420.0,0.00033972,5]
[362010683,1747935061104,-420.0,0.00033972,5]
[362010684,1747935061115,-420.0,0.00033972,5]
[362010685,1747935061124,-692.55,0.00033972,5]
[362010686,1747935061136,-420.0,0.00033972,5]
[362010687,1747935061146,-497.14,0.00033972,5]
[362010688,1747935061156,-1120.41,0.00033972,5]
[362010689,1747935061165,-420.0,0.00033972,5]
[362010690,1747935061175,-420.0,0.00033972,5]
[362010691,1747935061184,-420.0,0.00033972,5]
[362010692,1747935061193,-420.0,0.00033972,5]
[362010693,1747935061204,-709.8,0.00033972,5]
[362010694,1747935061214,-420.0,0.00033972,5]
[362010695,1747935061224,-420.0,0.00033972,5]
[362010696,1747935061233,-545.28,0.00033972,5]
[362010697,1747935061242,-804.9,0.00033972,5]
[362010698,1747935061252,-420.0,0.00033972,5]
[362010699,1747935061261,-420.0,0.00033972,5]
[362010700,1747935061271,-420.0,0.00033972,5]
[362010701,1747935061280,-714.59,0.00033972,5]
[362010702,1747935061289,-420.0,0.00033972,5]
[362010703,1747935061299,-420.0,0.00033972,5]
[362010704,1747935061308,-529.89,0.00033972,5]
[362010705,1747935061318,-420.0,0.00033972,5]
[362010706,1747935061327,-420.0,0.00033972,5]
[362010707,1747935061337,-420.0,0.00033972,5]
[362010708,1747935061347,-507.74,0.00033972,5]
[362010709,1747935061563,-657.62,0.00033972,5]
[362010710,1747935061573,-420.0,0.00033972,5]
[362010711,1747935061583,-841.13,0.00033972,5]
[362010712,1747935061592,-420.0,0.00033972,5]
[362010713,1747935061601,-420.0,0.00033972,5]
[362010714,1747935061611,-420.0,0.00033972,5]
[362010715,1747935061621,-420.0,0.00033972,5]
[362010716,1747935061630,-7231.10493647,0.00033999,2]
[362010717,1747935061639,-215.0738,0.00034049,2]
[362010718,1747935061648,-1731.42329,0.0003417,2]
[362010719,1747935061658,-549.51228385,0.00034221,5]
[362010720,1747935061668,-22545.184544,0.00034235,2]
[362010721,1747935061678,-165.05211231,0.00034235,2]
[362010722,1747935061687,-420.0,0.00034245,5]
[362010723,1747935061697,-420.0,0.00034245,5]
[362010724,1747935061706,-420.0,0.00034245,5]
[362010725,1747935061715,-420.0,0.00034245,5]
[362010726,1747935061725,-420.0,0.00034245,5]
[362010727,1747935061735,-420.0,0.00034245,5]
[362010728,1747935061745,-420.0,0.00034245,5]
[362010729,1747935061754,-420.0,0.00034245,5]
[362010730,1747935061764,-420.0,0.00034245,5]
[362010731,1747935061773,-420.0,0.00034245,5]
[362010732,1747935061782,-250.0,0.00034245,5]
[362010733,1747935061791,-420.0,0.00034245,5]
[362010734,1747935061800,-420.0,0.00034245,5]
[362010735,1747935061810,-420.0,0.00034245,5]
[362010736,1747935061819,-420.0,0.00034245,5]
[362010737,1747935061829,-487.5,0.00034245,5]
[362010738,1747935061839,-420.0,0.00034245,5]
[362010739,1747935061848,-420.0,0.00034245,5]
[362010740,1747935061857,-420.0,0.00034245,5]
[362010741,1747935061867,-307.54216809,0.00034245,5]
[362010742,1747935061878,-420.0,0.00034245,5]
[362010743,1747935061888,-420.0,0.00034245,5]
[362010744,1747935061898,-396.89018606,0.00034245,5]
[362010745,1747935061908,-420.0,0.00034245,5]
[362010746,1747935061917,-420.0,0.00034245,5]
[362010747,1747935061927,-420.0,0.00034245,5]
[362010748,1747935061936,-420.0,0.00034245,5]
[362010749,1747935061945,-420.0,0.00034245,5]
[362010750,1747935061955,-420.0,0.00034245,5]
[362010751,1747935061965,-420.0,0.00034245,5]
[362010752,1747935061974,-420.0,0.00034245,5]
[362010753,1747935061984,-420.0,0.00034245,5]
[362010754,1747935061994,-420.0,0.00034245,5]
[362010755,1747935062003,-304.55984988,0.00034245,5]
[362010756,1747935062013,-420.0,0.00034245,5]
[362010757,1747935062022,-420.0,0.00034245,5]
[362010758,1747935062032,-420.0,0.00034245,5]
[362010759,1747935062042,-420.0,0.00034245,5]
[362010760,1747935062051,-420.0,0.00034245,5]
[362010761,1747935062061,-483.36,0.00034245,5]
[362010762,1747935062070,-420.0,0.00034245,5]
[362010763,1747935062079,-420.0,0.00034245,5]
[362010764,1747935062089,-420.0,0.00034245,5]
[362010765,1747935062098,-420.0,0.00034245,5]
[362010766,1747935062108,-420.0,0.00034245,5]
[362010767,1747935062118,-420.0,0.00034245,5]
[362010768,1747935062127,-420.0,0.00034245,5]
[362010769,1747935062140,-420.0,0.00034245,5]
[362010770,1747935062150,-420.0,0.00034245,5]
[362010771,1747935062160,-420.0,0.00034245,5]
[362010772,1747935062169,-420.0,0.00034245,5]
[362010773,1747935062180,-420.0,0.00034245,5]
[362010774,1747935062190,-420.0,0.00034245,5]
[362010775,1747935062199,-545.28,0.00034245,5]
[362010776,1747935062209,-420.0,0.00034245,5]
[362010777,1747935062219,-520.34,0.00034245,5]
[362010778,1747935062228,-420.0,0.00034245,5]
[362010779,1747935062238,-420.0,0.00034245,5]
[362010780,1747935062247,-420.0,0.00034245,5]
[362010781,1747935062257,-420.0,0.00034245,5]
[362010782,1747935062266,-420.0,0.00034245,5]
[362010783,1747935062275,-420.0,0.00034245,5]
[362010784,1747935062285,-488.55,0.00034245,5]
[362010785,1747935062294,-420.0,0.00034245,5]
[362010786,1747935062304,-420.0,0.00034245,5]
[362010787,1747935062313,-420.0,0.00034245,5]
[362010788,1747935062323,-487.89,0.00034245,5]
[362010789,1747935062332,-420.0,0.00034245,5]
[362010790,1747935062342,-420.0,0.00034245,5]
[362010791,1747935062352,-420.0,0.00034245,5]
[362010792,1747935062362,-420.0,0.00034245,5]
[362010793,1747935062371,-420.0,0.00034245,5]
[362010794,1747935062380,-420.0,0.00034245,5]
[362010795,1747935062390,-445.26,0.00034245,5]
[362010796,1747935062399,-420.0,0.00034245,5]
[362010797,1747935062409,-483.68,0.00034245,5]
[362010798,1747935062419,-420.0,0.00034245,5]
[362010799,1747935062430,-420.0,0.00034245,5]
[362010800,1747935062439,-420.0,0.00034245,5]
[362010801,1747935062448,-420.0,0.00034245,5]
[362010802,1747935062457,-420.0,0.00034245,5]
[362010803,1747935062467,-420.0,0.00034245,5]
[362010804,1747935062476,-420.0,0.00034245,5]
[362010805,1747935062485,-420.0,0.00034245,5]
[362010806,1747935062495,-420.0,0.00034245,5]
[362010807,1747935062505,-467.6,0.00034245,5]
[362010808,1747935062514,-529.34,0.00034245,5]
[362010809,1747935062523,-420.0,0.00034245,5]
[362010810,1747935062533,-420.0,0.00034245,5]
[362010811,1747935062542,-420.0,0.00034245,5]
[362010812,1747935062551,-420.0,0.00034245,5]
[362010813,1747935062561,-420.0,0.00034245,5]
[362010814,1747935062570,-814.06,0.00034245,5]
[362010815,1747935062579,-430.11,0.00034245,5]
[362010816,1747935062588,-420.0,0.00034245,5]
[362010817,1747935062597,-545.18,0.00034245,5]
[362010818,1747935062606,-420.0,0.00034245,5]
[362010819,1747935062616,-420.0,0.00034245,5]
[362010820,1747935062627,-420.0,0.00034245,5]
[362010821,1747935062636,-420.0,0.00034245,5]
[362010822,1747935062646,-420.0,0.00034245,5]
[362010823,1747935062655,-420.0,0.00034245,5]
[362010824,1747935062664,-420.0,0.00034245,5]
[362010825,1747935062674,-420.0,0.00034245,5]
[362010826,1747935062683,-420.0,0.00034245,5]
[362010827,1747935062692,-420.0,0.00034245,5]
[362010828,1747935062701,-420.0,0.00034245,5]
[362010829,1747935062712,-420.0,0.00034245,5]
[362010830,1747935062722,-515.22,0.00034245,5]
[362010831,1747935062731,-420.0,0.00034245,5]
[362010832,1747935062740,-540.09,0.00034245,5]
[362010833,1747935062750,-1107.41,0.00034245,5]
[362010834,1747935062759,-420.0,0.00034245,5]
[362010835,1747935062769,-420.0,0.00034245,5]
[362010836,1747935062779,-420.0,0.00034245,5]
[362010837,1747935062789,-438.16310267,0.00034245,5]
[362010838,1747935062799,-420.0,0.00034245,5]
[362010839,1747935062809,-496.38272531,0.00034245,5]
[362010840,1747935062818,-420.0,0.00034245,5]
[362010841,1747935062827,-420.0,0.00034245,5]
[362010842,1747935062837,-420.0,0.00034245,5]
[362010843,1747935062847,-420.0,0.00034245,5]
[362010844,1747935062856,-420.0,0.00034245,5]
[362010845,1747935062866,-365.37921818,0.00034245,5]
[362010846,1747935062875,-420.0,0.00034245,5]
[362010847,1747935062885,-420.0,0.00034245,5]
[362010848,1747935062894,-420.0,0.00034245,5]
[362010849,1747935062905,-420.0,0.00034245,5]
[362010850,1747935062915,-420.0,0.00034245,5]
[362010851,1747935062926,-420.0,0.00034245,5]
[362010852,1747935062937,-420.0,0.00034245,5]
[362010853,1747935062947,-420.0,0.00034245,5]
[362010854,1747935062958,-420.0,0.00034245,5]
[362010855,1747935062969,-420.0,0.00034245,5]
[362010856,1747935062980,-474.31,0.00034245,5]
[362010857,1747935062990,-420.0,0.00034245,5]
[362010858,1747935063001,-420.0,0.00034245,5]
[362010859,1747935063011,-420.0,0.00034245,5]
[362010860,1747935063021,-519.78,0.00034245,5]
[362010861,1747935063032,-420.0,0.00034245,5]
[362010862,1747935063042,-420.0,0.00034245,5]
[362010863,1747935063052,-420.0,0.00034245,5]
[362010864,1747935063062,-420.0,0.00034245,5]
[362010865,1747935063072,-420.0,0.00034245,5]
[362010866,1747935063082,-420.0,0.00034245,5]
[362010867,1747935063093,-420.0,0.00034245,5]
[362010868,1747935063103,-437.63,0.00034245,5]
[362010869,1747935063112,-598.72,0.00034245,5]
[362010870,1747935063123,-573.23,0.00034245,5]
[362010871,1747935063135,-420.0,0.00034245,5]
[362010872,1747935063145,-420.0,0.00034245,5]
[362010873,1747935063156,-420.0,0.00034245,5]
[362010874,1747935063166,-420.0,0.00034245,5]
[362010875,1747935063178,-559.0,0.00034245,5]
[362010876,1747935063188,-420.0,0.00034245,5]
[362010877,1747935063198,-420.0,0.00034245,5]
[362010878,1747935063209,-420.0,0.00034245,5]
[362010879,1747935063221,-451.99,0.00034245,5]
[362010880,1747935063231,-420.0,0.00034245,5]
[362010881,1747935063241,-431.02,0.00034245,5]
[362010882,1747935063251,-420.0,0.00034245,5]
[362010883,1747935063262,-420.0,0.00034245,5]
[362010884,1747935063272,-420.0,0.00034245,5]
[362010885,1747935063282,-420.0,0.00034245,5]
[362010886,1747935063292,-525.17130148,0.00034245,5]
[362010887,1747935063302,-420.0,0.00034245,5]
[362010888,1747935063313,-460.17,0.00034245,5]
[362010889,1747935063323,-420.0,0.00034245,5]
[362010890,1747935063333,-420.0,0.00034245,5]
[362010891,1747935063344,-420.0,0.00034245,5]
[362010892,1747935063355,-420.0,0.00034245,5]
[362010893,1747935063365,-481.55469404,0.00034245,5]
[362010894,1747935063375,-420.0,0.00034245,5]
[362010895,1747935063386,-193.16193025,0.00034245,5]
[362010896,1747935063396,-467.16,0.00034245,5]
[362010897,1747935063406,-420.0,0.00034245,5]
[362010898,1747935063417,-420.0,0.00034245,5]
[362010899,1747935063427,-3853.46,0.00034245,5]
[362010900,1747935063437,-772.8,0.00034245,5]
[362010901,1747935063447,-420.0,0.00034245,5]
[362010902,1747935063458,-420.0,0.00034245,5]
[362010903,1747935063468,-420.0,0.00034245,5]
[362010904,1747935063478,-420.0,0.00034245,5]
[362010905,1747935063489,-502.5,0.00034245,5]
[362010906,1747935063499,-494.65,0.00034245,5]
[362010907,1747935063509,-420.0,0.00034245,5]
[362010908,1747935063519,-509.71,0.00034245,5]
[362010909,1747935063530,-450.9,0.00034245,5]
[362010910,1747935063540,-420.0,0.00034245,5]
[362010911,1747935063550,-515.75,0.00034245,5]
[362010912,1747935063561,-2031.29,0.00034245,5]
[362010913,1747935063571,-420.0,0.00034245,5]
[362010914,1747935063581,-695.15,0.00034245,5]
[362010915,1747935063591,-549.77,0.00034245,5]
[362010916,1747935063602,-420.0,0.00034245,5]
[362010917,1747935063612,-420.0,0.00034245,5]
[362010918,1747935063623,-420.0,0.00034245,5]
[362010919,1747935063634,-420.0,0.00034245,5]
[362010920,1747935063644,-420.0,0.00034245,5]
[362010921,1747935063654,-420.0,0.00034245,5]
[362010922,1747935063665,-539.71,0.00034245,5]
[362010923,1747935063676,-546.16,0.00034245,5]
[362010924,1747935063687,-420.0,0.00034245,5]
[362010925,1747935063698,-420.0,0.00034245,5]
[362010926,1747935063708,-1565.37,0.00034245,5]
[362010927,1747935063719,-426.73,0.00034245,5]
[362010928,1747935063730,-482.45,0.00034245,5]
[362010929,1747935063741,-420.0,0.00034245,5]
[362010930,1747935063753,-420.0,0.00034245,5]
[362010931,1747935063763,-4352.7,0.00034245,5]
[362010932,1747935063774,-420.0,0.00034245,5]
[362010933,1747935063786,-3225.07,0.00034245,5]
[362010934,1747935063796,-674.14,0.00034245,5]
[362010935,1747935063807,-1523.03,0.00034245,5]
[362010936,1747935063820,-420.0,0.00034245,5]
[362010937,1747935063831,-420.0,0.00034245,5]
[362010938,1747935063842,-867.25,0.00034245,5]
[362010939,1747935063853,-1360.92,0.00034245,5]
[362010940,1747935063864,-420.0,0.00034245,5]
[362010941,1747935063875,-420.0,0.00034245,5]
[362010942,1747935063887,-420.0,0.00034245,5]
[362010943,1747935063898,-443.04,0.00034245,5]
[362010944,1747935063909,-2555.07,0.00034245,5]
[362010945,1747935063920,-420.0,0.00034245,5]
[362010946,1747935063931,-420.0,0.00034245,5]
[362010947,1747935063942,-462.41,0.00034245,5]
[362010948,1747935063953,-420.0,0.00034245,5]
[362010949,1747935063963,-14415.92,0.00034245,5]
[362010950,1747935063974,-867.04,0.00034245,5]
[362010951,1747935063985,-420.0,0.00034245,5]
[362010952,1747935063995,-420.0,0.00034245,5]
[362010953,1747935064005,-976.26,0.00034245,5]
[362010954,1747935064016,-420.0,0.00034245,5]
[362010955,1747935064027,-582.57,0.00034245,5]
[362010956,1747935064037,-1157.52,0.00034245,5]
[362010957,1747935064053,-420.0,0.00034245,5]
[362010958,1747935064066,-437.12,0.00034245,5]
[362010959,1747935064081,-424.93,0.00034245,5]
[362010960,1747935064094,-539.28040229,0.00034245,5]
[362010961,1747935064109,-527.89,0.00034245,5]
[362010962,1747935064120,-420.0,0.00034245,5]
[362010963,1747935064135,-420.0,0.00034245,5]
[362010964,1747935064149,-420.0,0.00034245,5]
[362010965,1747935064162,-420.0,0.00034245,5]
[362010966,1747935064175,-420.0,0.00034245,5]
[362010967,1747935064188,-534.29,0.00034245,5]
[362010968,1747935064202,-574.48,0.00034245,5]
[362010969,1747935064217,-1196.46,0.00034245,5]
[362010970,1747935064230,-636.39,0.00034245,5]
[362010971,1747935064242,-1119.48,0.00034245,2]
[362010972,1747935064253,-498.52,0.00034245,5]
[362010973,1747935064264,-806.79,0.00034245,5]
[362010974,1747935064278,-572.8,0.00034245,5]
[362010975,1747935064292,-420.0,0.00034245,5]
[362010976,1747935064304,-420.0,0.00034245,5]
[362010977,1747935064317,-420.0,0.00034245,5]
[362010978,1747935064330,-420.0,0.00034245,5]
[362010979,1747935064343,-420.0,0.00034245,5]
[362010980,1747935064356,-849.42,0.00034245,5]
[362010981,1747935064369,-507.68,0.00034245,5]
[362010982,1747935064382,-420.0,0.00034245,5]
[362010983,1747935064394,-614.28,0.00034245,5]
[362010984,1747935064407,-420.0,0.00034245,5]
[362010985,1747935064419,-7277.43,0.00034245,5]
[362010986,1747935064431,-420.0,0.00034245,5]
[362010987,1747935064445,-420.0,0.00034245,5]
[362010988,1747935064457,-420.0,0.00034245,5]
[362010989,1747935064469,-420.0,0.00034245,5]
[362010990,1747935064482,-639.67,0.00034245,5]
[362010991,1747935064495,-756.23,0.00034245,5]
[362010992,1747935064507,-733.4,0.00034245,5]
[362010993,1747935064519,-452.04843446,0.00034245,5]
[362010994,1747935064531,-440.65,0.00034245,5]
[362010995,1747935064544,-649.32,0.00034245,5]
[362010996,1747935064559,-420.0,0.00034245,5]
[362010997,1747935064570,-420.0,0.00034245,5]
[362010998,1747935064582,-420.0,0.00034245,5]
[362010999,1747935064593,-420.0,0.00034245,5]
[362011000,1747935064606,-420.0,0.00034245,5]
[362011001,1747935064616,-420.0,0.00034245,5]
[362011002,1747935064627,-420.0,0.00034245,5]
[362011003,1747935064638,-420.0,0.00034245,5]
[362011004,1747935064648,-420.0,0.00034245,5]
[362011005,1747935064661,-420.0,0.00034245,5]
[362011006,1747935064675,-741.9,0.00034245,5]
[362011007,1747935064687,-497.19,0.00034245,5]
[362011008,1747935064702,-1998.51,0.00034245,5]
[362011009,1747935064713,-470.36,0.00034245,5]
[362011010,1747935064724,-420.0,0.00034245,5]
[362011011,1747935064734,-639.49,0.00034245,5]
[362011012,1747935064746,-420.0,0.00034245,5]
[362011013,1747935064759,-1494.47,0.00034245,5]
[362011014,1747935064773,-511.54,0.00034245,5]
[362011015,1747935064785,-420.0,0.00034245,5]
[362011016,1747935064797,-420.0,0.00034245,5]
[362011017,1747935064808,-708.15,0.00034245,5]
[362011018,1747935064820,-420.0,0.00034245,5]
[362011019,1747935064831,-503.81,0.00034245,5]
[362011020,1747935064844,-1263.37,0.00034245,5]
[362011021,1747935064855,-517.04,0.00034245,5]
[362011022,1747935064868,-536.17,0.00034245,5]
[362011023,1747935064880,-420.0,0.00034245,5]
[362011024,1747935064892,-420.0,0.00034245,5]
[362011025,1747935064903,-420.0,0.00034245,5]
[362011026,1747935064916,-517.27,0.00034245,5]
[362011027,1747935064928,-420.0,0.00034245,5]
[362011028,1747935064939,-420.0,0.00034245,5]
[362011029,1747935064951,-521.46,0.00034245,5]
[362011030,1747935064963,-742.81,0.00034245,5]
[362011031,1747935064975,-1985.71,0.00034245,2]
[362011032,1747935064986,-1151.71,0.00034245,5]
[362011033,1747935064998,-420.0,0.00034245,5]
[362011034,1747935065009,-469.35,0.00034245,5]
[362011035,1747935065022,-420.0,0.00034245,5]
[362011036,1747935065034,-420.0,0.00034245,5]
[362011037,1747935065046,-420.0,0.00034245,5]
[362011038,1747935065058,-171.85493665,0.00034245,5]
[362011039,1747935065070,-625.55,0.00034245,5]
[362011040,1747935065082,-420.0,0.00034245,5]
[362011041,1747935065094,-420.0,0.00034245,5]
[362011042,1747935065106,-592.81,0.00034245,5]
[362011043,1747935065117,-570.36,0.00034245,5]
[362011044,1747935065129,-420.0,0.00034245,5]
[362011045,1747935065145,-420.0,0.00034245,5]
[362011046,1747935065156,-759.32,0.00034245,5]
[362011047,1747935065168,-432.61,0.00034245,5]
[362011048,1747935065180,-420.0,0.00034245,5]
[362011049,1747935065194,-420.0,0.00034245,5]
[362011050,1747935065206,-650.73,0.00034245,5]
[362011051,1747935065219,-637.2,0.00034245,5]
[362011052,1747935065231,-420.0,0.00034245,5]
[362011053,1747935065242,-420.0,0.00034245,5]
[362011054,1747935065254,-420.0,0.00034245,5]
[362011055,1747935065265,-420.0,0.00034245,5]
[362011056,1747935065277,-420.0,0.00034246,5]
[362011057,1747935065290,-420.0,0.00034246,5]
[362011058,1747935065301,-300.0,0.00034246,5]
[362011059,1747935065312,-597.49,0.00034246,5]
[362011060,1747935065325,-420.14,0.00034246,5]
[362011061,1747935065336,-420.0,0.00034246,5]
[362011062,1747935065349,-420.0,0.00034246,5]
[362011063,1747935065360,-420.0,0.00034246,5]
[362011064,1747935065371,-420.0,0.00034246,5]
[362011065,1747935065383,-420.0,0.00034246,5]
[362011066,1747935065394,-420.0,0.00034246,5]
[362011067,1747935065405,-420.0,0.00034246,5]
[362011068,1747935065417,-427.8,0.00034246,5]
[362011069,1747935065428,-420.0,0.00034246,5]
[362011070,1747935065439,-420.0,0.00034246,5]
[362011071,1747935065450,-421.55,0.00034246,5]
[362011072,1747935065462,-420.0,0.00034246,5]
[362011073,1747935065473,-420.0,0.00034246,5]
[362011074,1747935065484,-420.0,0.00034246,5]
[362011075,1747935065495,-420.0,0.00034246,5]
[362011076,1747935065506,-420.0,0.00034246,5]
[362011077,1747935065518,-420.0,0.00034246,5]
[362011078,1747935065528,-420.0,0.00034246,5]
[362011079,1747935065539,-420.0,0.00034246,5]
[362011080,1747935065550,-420.0,0.00034246,5]
[362011081,1747935065561,-371.33512574,0.00034246,5]
[362011082,1747935065572,-420.0,0.00034246,5]
[362011083,1747935065583,-420.0,0.00034246,5]
[362011084,1747935065595,-455.43,0.00034246,5]
[362011085,1747935065606,-420.0,0.00034246,5]
[362011086,1747935065617,-420.0,0.00034246,5]
[362011087,1747935065628,-603.05,0.00034246,5]
[362011088,1747935065639,-420.0,0.00034246,5]
[362011089,1747935065650,-420.0,0.00034246,5]
[362011090,1747935065667,-420.0,0.00034246,5]
[362011091,1747935065678,-420.0,0.00034246,5]
[362011092,1747935065690,-420.0,0.00034246,5]
[362011093,1747935065702,-420.0,0.00034246,5]
[362011094,1747935065713,-454.01,0.00034246,5]
[362011095,1747935065725,-420.0,0.00034246,5]
[362011096,1747935065736,-420.0,0.00034246,5]
[362011097,1747935065748,-420.0,0.00034246,5]
[362011098,1747935065759,-420.0,0.00034246,5]
[362011099,1747935065771,-526.11725609,0.00034246,5]
[362011100,1747935065782,-420.0,0.00034246,5]
[362011101,1747935065793,-420.0,0.00034246,5]
[362011102,1747935065804,-420.0,0.00034246,5]
[362011103,1747935065816,-457.94,0.00034246,5]
[362011104,1747935065827,-420.0,0.00034246,5]
[362011105,1747935065839,-956.72,0.00034246,5]
[362011106,1747935065850,-564.7,0.00034246,5]